bitfinex/quotes_ETHUSD_20251015
["timestamp","ask_amount","ask_price","bid_price","bid_amount"]
[1760518128599,20.71534617,4194.8,4194.7,1e-08]
[1760518128789,19.99460417,4194.8,4194.7,1e-08]
[1760518128988,14.25212517,4194.8,4194.7,1e-08]
[1760518129338,12.35070688,4194.8,4194.7,1e-08]
[1760518130001,19.94431588,4194.8,4194.7,1e-08]
[1760518130209,17.65808488,4194.8,4194.7,1e-08]
[1760518130598,16.58408488,4194.8,4194.7,1e-08]
[1760518130774,13.50028288,4194.8,4194.7,1e-08]
[1760518130977,17.89719387,4194.8,4194.7,1e-08]
[1760518131286,18.03719387,4194.8,4194.7,1e-08]
[1760518131968,22.90454687,4194.8,4194.7,1e-08]
[1760518132366,20.28854687,4194.8,4194.7,1e-08]
[1760518132603,23.02294687,4194.8,4194.7,1e-08]
[1760518132898,23.65654687,4194.8,4194.7,1e-08]
[1760518133128,33.05364615,4194.8,4194.7,1e-08]
[1760518133327,2.38418806,4194.3,4194.2,1e-08]
[1760518133526,22.62498501,4194.3,4194.2,1e-08]
[1760518133741,20.14898501,4194.3,4194.2,1e-08]
[1760518133944,18.53520101,4194.3,4194.2,1e-08]
[1760518134100,22.76498501,4194.3,4194.2,1e-08]
[1760518134741,22.28764798,4194.3,4194.2,1e-08]
[1760518134924,22.42764798,4194.3,4194.2,1e-08]
[1760518135238,2.38408682,4194.5,4194.2,1e-08]
[1760518135433,16.22844206,4194.3,4194.2,0.42770001]
[1760518135602,11.30157506,4194.3,4194.2,0.42770001]
[1760518135927,13.77757506,4194.3,4194.2,0.42770001]
[1760518136502,11.30157506,4194.3,4194.2,0.42770001]
[1760518136732,13.77757506,4194.3,4194.2,0.42770001]
[1760518137132,13.77757506,4194.3,4194.2,1e-08]
[1760518137520,8.917387,4194.3,4194.2,0.42770001]
[1760518137719,4.395,4194.3,4194.2,0.42770001]
[1760518137920,6.77918806,4194.3,4194.2,0.42770001]
[1760518138526,4.395,4194.3,4194.2,0.42770001]
[1760518139431,1.92,4194.3,4194.2,0.42770001]
[1760518139619,2.475,4194.3,4194.2,0.86298167]
[1760518140008,2.475,4194.3,4194.2,0.42770001]
[1760518140209,3.549,4194.3,4194.2,0.42770001]
[1760518140429,7.85318806,4194.3,4194.2,1e-08]
[1760518140633,16.85562006,4194.3,4194.2,1e-08]
[1760518141238,15.79151306,4194.3,4194.2,1e-08]
[1760518141420,15.36376806,4194.3,4194.2,1e-08]
[1760518142538,13.70916506,4194.3,4194.2,1e-08]
[1760518142836,12.63516506,4194.3,4194.2,1e-08]
[1760518143533,4.395,4194.3,4194.2,0.65730001]
[1760518144614,4.395,4194.3,4194.2,0.22960001]
[1760518144820,4.394,4194.3,4194.2,0.65730001]
[1760518145334,6.77818806,4194.3,4194.2,1e-08]
[1760518146239,14.77992406,4194.3,4194.2,1e-08]
[1760518148633,4.549471,4194.3,4194.2,0.65730001]
[1760518148828,2.474,4194.3,4194.2,0.65730001]
[1760518149240,2.38418806,4194.3,4194.2,1e-08]
[1760518149452,4.85818806,4194.3,4194.2,1e-08]
[1760518149623,5.58241556,4194.3,4194.2,1e-08]
[1760518150139,9.65041556,4194.3,4194.2,1e-08]
[1760518150340,8.57641556,4194.3,4194.2,1e-08]
[1760518150545,31.81623356,4194.3,4194.2,1e-08]
[1760518150843,20.32273556,4194.3,4194.2,1e-08]
[1760518151210,30.09793459,4194.3,4194.2,1e-08]
[1760518151407,47.41761459,4194.3,4194.2,1e-08]
[1760518151611,9.18292356,4194.3,4194.2,1e-08]
[1760518151809,15.25873106,4194.3,4194.2,1e-08]
[1760518152044,4.837256,4194.3,4194.2,1e-08]
[1760518152244,4.85718806,4194.3,4194.2,1e-08]
[1760518152444,16.60297106,4194.3,4194.2,1e-08]
[1760518152612,16.74297106,4194.3,4194.2,1e-08]
[1760518152814,16.10405206,4194.3,4194.2,1e-08]
[1760518153246,17.95286855,4194.3,4194.2,1e-08]
[1760518153449,8.76600455,4194.3,4194.2,1e-08]
[1760518153651,18.88360855,4194.3,4194.2,1e-08]
[1760518154021,16.65759855,4194.3,4194.2,1e-08]
[1760518154222,8.86606506,4194.3,4194.2,1e-08]
[1760518154641,9.32118606,4194.3,4194.2,1e-08]
[1760518154952,4.30418806,4194.3,4194.2,1e-08]
[1760518155148,6.77718806,4194.3,4194.2,0.47090001]
[1760518155516,14.79421906,4194.3,4194.2,1e-08]
[1760518155739,14.21199406,4194.3,4194.2,1e-08]
[1760518156139,11.73899406,4194.3,4194.2,1e-08]
[1760518156345,14.21199406,4194.3,4194.2,1e-08]
[1760518156540,14.32034006,4194.3,4194.2,1e-08]
[1760518156724,12.72999406,4194.3,4194.2,1e-08]
[1760518157048,6.77718806,4194.3,4194.2,1e-08]
[1760518157416,4.30418806,4194.3,4194.2,1e-08]
[1760518157629,4.30418806,4194.3,4194.2,0.70040001]
[1760518157630,6.77718806,4194.3,4194.2,0.70040001]
[1760518158052,1.92,4194.3,4194.2,0.70040001]
[1760518158455,2.473,4194.3,4194.2,0.70040001]
[1760518158917,2.473,4194.3,4194.2,1.00907491]
[1760518159960,2.473,4194.3,4194.2,0.53817491]
[1760518160137,3.547,4194.3,4194.2,1.12827491]
[1760518160950,3.547,4194.3,4194.2,0.11920001]
[1760518161152,3.547,4194.3,4194.2,1e-08]
[1760518162160,3.548,4194.3,4194.2,0.47090001]
[1760518164357,3.548,4194.3,4194.2,1e-08]
[1760518164756,3.548,4194.3,4194.2,0.47090001]
[1760518166458,3.548,4194.3,4194.2,1e-08]
[1760518167591,1.075,4194.3,4194.2,2.87898735]
[1760518167755,3.547,4194.3,4194.2,3.40462804]
[1760518168095,0.001,4194.3,4194.2,3.40462804]
[1760518168303,3.547,4194.3,4194.2,3.40462804]
[1760518169772,0.001,4194.3,4194.2,3.40462804]
[1760518170087,3.546,4194.3,4194.2,3.40462804]
[1760518170697,3.546,4194.3,4194.2,4.06207048]
[1760518170897,3.546,4194.3,4194.2,4.03822804]
[1760518171098,3.546,4194.3,4194.2,4.15742804]
[1760518171900,0.001,4194.3,4194.2,6.07742804]
[1760518172399,2.097,4194.3,4194.2,6.07742804]
[1760518173698,1.074,4194.6,4194.5,2.38407438]
[1760518173868,2.148,4194.6,4194.5,2.38407438]
[1760518174074,2.148,4194.6,4194.5,5.40857438]
[1760518174774,1.074,4194.6,4194.5,5.40857438]
[1760518175111,0.001,4194.8,4194.7,3.01756071]
[1760518175404,0.1392,4196.9,4194.8,0.6336]
[1760518175573,2.5219112,4196.9,4196.1,2.38311602]
[1760518175776,0.2188,4197.0,4195.1,0.02383733]
[1760518176103,0.2188,4197.0,4195.3,0.6336]
[1760518176307,0.2188,4197.0,4196.3,2.38305173]
[1760518176479,0.2188,4197.0,4196.3,2.85966974]
[1760518176681,2.471,4196.4,4196.3,2.85966974]
[1760518180011,2.471,4196.4,4196.3,2.38305173]
[1760518180183,3.545,4196.4,4196.3,2.38305173]
[1760518181797,3.545,4196.4,4196.3,2.84815173]
[1760518183598,1.075,4196.4,4196.3,3.48175173]
[1760518183803,0.001,4196.4,4196.3,3.60015173]
[1760518184005,3.466,4196.4,4196.3,6.1423118]
[1760518184311,3.544,4196.4,4196.3,6.11848129]
[1760518184506,0.001,4196.9,4196.7,3.0164246]
[1760518184702,2.392,4196.8,4196.7,4.9364246]
[1760518185004,2.392,4196.8,4196.7,5.4015246]
[1760518185406,0.001,4197.3,4196.9,0.6336]
[1760518185633,0.001,4197.3,4197.2,4.52224074]
[1760518185828,0.001,4197.3,4197.2,6.2164582]
[1760518185829,0.22,4197.3,4197.2,6.2164582]
[1760518186004,0.2237,4198.9,4198.2,2.38195789]
[1760518186829,0.2237,4198.9,4197.7,0.4651]
[1760518186830,2.60527909,4198.9,4198.1,2.38201762]
[1760518187248,2.468,4198.7,4198.1,2.38201762]
[1760518187554,10.776274,4199.6,4199.5,2.38123586]
[1760518187752,0.1857,4201.7,4200.1,1.92]
[1760518188048,0.292,4201.4,4200.3,9.523326]
[1760518188343,0.1857,4200.4,4199.7,9.523326]
[1760518188502,0.68,4200.3,4199.6,9.523326]
[1760518189634,2.468,4200.2,4199.7,9.523326]
[1760518189802,2.468,4200.2,4199.8,2.38101241]
[1760518190002,2.468,4200.2,4200.0,2.38094453]
[1760518190313,3.54,4200.1,4200.0,0.4651]
[1760518190842,3.54,4200.1,4199.9,2.38100698]
[1760518191026,0.1857,4200.8,4199.8,2.38106521]
[1760518191343,0.1857,4200.8,4199.9,2.8460961]
[1760518191344,3.54,4200.7,4199.9,2.8460961]
[1760518192938,3.54,4200.7,4200.0,2.3809487]
[1760518194353,0.1857,4200.8,4200.1,2.38089287]
[1760518194551,3.54,4200.7,4200.6,0.1184]
[1760518195318,2.38055562,4200.7,4200.6,0.1184]
[1760518195518,2.38061229,4200.6,4199.4,0.2197]
[1760518195820,2.38083345,4200.3,4199.5,9.523326]
[1760518196041,2.466,4200.2,4199.5,9.523326]
[1760518196217,2.466,4200.2,4199.4,2.38124461]
[1760518196417,2.466,4200.2,4199.2,2.85035691]
[1760518196853,2.7126,4200.2,4199.3,9.523326]
[1760518197055,2.7126,4200.2,4199.2,2.3813957]
[1760518197217,5.093446,4200.2,4199.2,9.523326]
[1760518197417,2.38093992,4200.1,4199.3,2.38129844]
[1760518197652,2.38093992,4200.1,4199.1,0.698]
[1760518197653,0.36392556,4200.7,4199.4,0.02381292]
[1760518197856,1.073,4200.0,4199.4,2.3473646]
[1760518198059,2.466,4199.9,4199.1,0.69664189]
[1760518198221,2.466,4199.9,4197.8,2.38219059]
[1760518198222,5.03411872,4199.9,4198.3,0.469]
[1760518198426,2.38112935,4199.7,4198.8,10.01879684]
[1760518198656,2.38118948,4199.6,4198.8,2.38163284]
[1760518198847,2.38124603,4199.5,4198.7,2.38165533]
[1760518199154,2.38124603,4199.5,4198.8,7.637164]
[1760518199327,2.38124603,4199.5,4198.8,10.01879128]
[1760518199530,3.12272395,4199.6,4198.8,2.38162728]
[1760518199931,2.38125461,4199.5,4198.8,2.38162728]
[1760518200127,2.466,4199.4,4198.6,2.38170103]
[1760518200328,3.538,4199.3,4198.8,10.01875229]
[1760518200554,2.465,4199.2,4199.1,0.002]
[1760518200731,2.465,4199.2,4199.1,0.231]
[1760518200932,2.465,4199.2,4199.1,3.08146269]
[1760518201140,2.465,4199.2,4199.1,0.7]
[1760518201646,2.465,4199.2,4199.1,0.002]
[1760518202047,2.8188,4199.2,4199.1,0.002]
[1760518202366,2.465,4199.2,4199.1,0.002]
[1760518202559,0.1871,4199.9,4199.1,0.002]
[1760518202764,1.073,4199.2,4199.1,0.002]
[1760518203065,3.538,4199.2,4199.1,0.002]
[1760518204336,3.538,4199.2,4199.1,0.7]
[1760518204765,3.538,4199.2,4199.1,3.08146269]
[1760518204946,0.1871,4199.9,4199.2,2.38138874]
[1760518205149,1.073,4199.2,4199.1,0.002]
[1760518205469,3.538,4199.2,4199.1,0.1204]
[1760518206038,1.92,4200.7,4199.1,0.3494]
[1760518206266,2.38106,4199.9,4199.1,3.19982535]
[1760518206472,2.465,4199.8,4199.1,0.002]
[1760518206685,2.38122245,4199.6,4199.1,0.002]
[1760518207049,2.38122245,4199.6,4199.5,0.1184]
[1760518207252,0.50330542,4199.7,4199.5,0.1184]
[1760518207446,2.38112246,4199.7,4199.5,0.1184]
[1760518207781,3.538,4199.6,4199.1,0.002]
[1760518208293,3.538,4199.6,4199.5,0.1184]
[1760518209867,5.91917915,4199.6,4199.5,0.1184]
[1760518213086,3.538,4199.6,4199.5,0.1184]
[1760518214586,5.91917915,4199.6,4199.5,0.1184]
[1760518214978,3.538,4199.6,4199.5,0.1184]
[1760518215900,2.3811366,4199.7,4199.5,0.1184]
[1760518216198,3.537,4199.6,4199.5,0.1184]
[1760518216582,5.91817915,4199.6,4199.5,0.1184]
[1760518216801,6.9588143,4199.6,4199.5,0.1184]
[1760518217102,7.0578143,4199.6,4199.5,0.1184]
[1760518217510,5.91817915,4199.6,4199.5,0.1184]
[1760518218306,5.91917915,4199.6,4199.5,0.1184]
[1760518218502,6.01817915,4199.6,4199.5,0.1184]
[1760518220620,5.91917915,4199.6,4199.5,0.1184]
[1760518221529,6.01817915,4199.6,4199.5,0.1184]
[1760518221822,6.8768143,4199.6,4199.5,0.1184]
[1760518222111,8.7968143,4199.6,4199.5,0.1184]
[1760518222290,6.3320143,4199.6,4199.5,0.1184]
[1760518222489,13.8948703,4199.6,4199.5,0.1184]
[1760518223015,6.3320143,4199.6,4199.5,0.1184]
[1760518223337,8.6257083,4199.6,4199.5,0.1184]
[1760518223480,8.7950143,4199.6,4199.5,0.1184]
[1760518223986,11.3209263,4199.6,4199.5,0.1184]
[1760518224391,8.6960143,4199.6,4199.5,0.1184]
[1760518226385,11.0470253,4199.6,4199.5,0.1184]
[1760518228815,2.38140598,4199.2,4199.1,0.002]
[1760518229016,5.32067583,4199.2,4199.1,0.1204]
[1760518229226,5.41967583,4199.2,4199.1,0.1204]
[1760518230032,5.32067583,4199.2,4199.1,0.1204]
[1760518230339,5.91740598,4199.2,4199.1,0.1204]
[1760518233239,1.073,4199.2,4199.1,0.3565]
[1760518233451,4.608,4199.2,4199.1,0.8208]
[1760518234148,1.073,4199.2,4199.1,3.20226269]
[1760518234350,3.417,4199.2,4199.1,3.20226269]
[1760518234552,3.417,4199.2,4199.1,3.76064254]
[1760518234929,1.073,4199.2,4199.1,3.76064254]
[1760518235132,3.32,4199.2,4199.1,3.76064254]
[1760518236138,3.32,4199.2,4199.1,4.27584254]
[1760518236139,2.146,4199.2,4199.1,4.27584254]
[1760518236333,4.608,4199.2,4199.1,6.19584254]
[1760518237450,4.608,4199.2,4199.1,4.27584254]
[1760518238248,4.608,4199.2,4199.1,7.92490153]
[1760518239265,4.608,4199.2,4199.1,2.94184254]
[1760518239466,4.608,4199.2,4199.1,3.08386269]
[1760518241167,4.608,4199.2,4199.1,3.71746269]
[1760518241168,1.073,4199.2,4199.1,3.71746269]
[1760518241468,3.294,4199.2,4199.1,3.71746269]
[1760518244356,3.294,4199.2,4199.1,3.25316269]
[1760518244561,3.294,4199.2,4199.1,3.68566269]
[1760518244869,3.294,4199.2,4199.1,4.29238254]
[1760518245248,3.294,4199.2,4199.1,0.60871985]
[1760518245567,3.294,4199.2,4199.1,0.002]
[1760518246069,1.073,4199.2,4199.1,0.002]
[1760518246276,1.073,4199.2,4199.1,0.1204]
[1760518247193,3.6339,4199.2,4199.1,0.1204]
[1760518247387,6.01530598,4199.2,4199.1,0.1204]
[1760518247561,6.85496629,4199.2,4199.1,0.1204]
[1760518248445,6.75506629,4199.2,4199.1,0.1204]
[1760518248646,3.6339,4199.2,4199.1,0.1204]
[1760518248841,3.534,4199.2,4199.1,0.1204]
[1760518249073,2.38135063,4199.3,4199.1,0.1204]
[1760518249366,3.533,4199.2,4199.1,0.1204]
[1760518249884,5.91440598,4199.2,4199.1,0.1204]
[1760518250081,6.01430598,4199.2,4199.1,0.1204]
[1760518251194,11.19133755,4199.2,4199.1,0.1204]
[1760518251399,11.19133755,4199.2,4199.1,0.002]
[1760518251588,10.11833755,4199.2,4199.1,0.002]
[1760518254491,7.70826655,4199.2,4199.1,0.002]
[1760518254697,7.70826655,4199.2,4199.1,0.1204]
[1760518255059,7.80816655,4199.2,4199.1,0.1204]
[1760518255456,0.0002,4199.6,4199.1,0.4345]
[1760518255761,2.46,4199.5,4199.1,0.6511]
[1760518255963,2.46,4199.5,4199.2,0.4325]
[1760518256261,2.46,4199.5,4199.1,0.002]
[1760518256262,4.38,4199.5,4199.1,0.002]
[1760518256758,4.84124318,4199.5,4199.1,0.002]
[1760518256967,2.38129516,4199.4,4199.1,0.002]
[1760518257178,2.46,4199.5,4199.1,0.002]
[1760518257179,4.84124741,4199.5,4199.1,0.002]
[1760518257384,2.38129672,4199.4,4199.1,0.002]
[1760518257593,0.0002,4199.6,4199.1,0.2193]
[1760518257909,2.46,4199.5,4199.2,0.4437]
[1760518258913,2.46,4199.5,4199.1,0.002]
[1760518258914,2.38134927,4199.3,4199.1,0.002]
[1760518259104,4.30140598,4199.2,4199.1,0.002]
[1760518259510,4.40130598,4199.2,4199.1,0.002]
[1760518259886,2.38140598,4199.2,4199.1,0.002]
[1760518260217,6.54730598,4199.2,4199.1,0.002]
[1760518260423,7.92658372,4199.2,4199.1,0.002]
[1760518260999,6.85358372,4199.2,4199.1,0.002]
[1760518261200,27.94376772,4199.2,4199.1,0.002]
[1760518261494,20.17638772,4199.2,4199.1,0.002]
[1760518261714,15.80498472,4199.2,4199.1,0.002]
[1760518262392,24.56222872,4199.2,4199.1,0.002]
[1760518262900,24.25863072,4199.2,4199.1,0.002]
[1760518263098,22.26693484,4198.8,4198.7,1e-08]
[1760518263311,27.73457789,4198.8,4198.7,1e-08]
[1760518263636,4.30185975,4198.4,4198.3,1e-08]
[1760518263787,29.29625875,4198.4,4198.3,1e-08]
[1760518263988,29.39665875,4198.4,4198.3,1e-08]
[1760518264423,20.28088275,4198.4,4198.3,1e-08]
[1760518264737,21.2839428,4198.4,4198.3,1e-08]
[1760518265149,19.0016928,4198.4,4198.3,1e-08]
[1760518265344,18.7302468,4198.4,4198.3,1e-08]
[1760518265513,21.3956708,4198.4,4198.3,1e-08]
[1760518265837,21.8393708,4198.4,4198.3,1e-08]
[1760518266235,22.4729708,4198.4,4198.3,1e-08]
[1760518266542,24.2147998,4198.4,4198.3,1e-08]
[1760518267235,21.1494838,4198.4,4198.3,1e-08]
[1760518267440,23.5925208,4198.4,4198.3,1e-08]
[1760518267637,23.2465208,4198.4,4198.3,1e-08]
[1760518268453,34.0055238,4198.4,4198.3,1e-08]
[1760518268865,34.24404302,4198.4,4198.3,1e-08]
[1760518269062,0.6336,4197.3,4195.6,0.2173]
[1760518269252,2.5528,4196.9,4195.6,0.2173]
[1760518269429,6.938326,4196.6,4195.6,0.2173]
[1760518269631,2.38323525,4196.0,4195.6,0.2173]
[1760518269860,2.459,4195.9,4195.6,0.2173]
[1760518270059,4.84229928,4195.9,4195.6,0.2173]
[1760518270230,1.073,4195.8,4195.6,0.666]
[1760518270430,2.38339252,4195.7,4195.6,0.2173]
[1760518270830,3.45634427,4195.8,4195.6,0.666]
[1760518271143,2.38339252,4195.7,4195.6,0.2173]
[1760518271663,2.38339252,4195.7,4195.6,0.666]
[1760518271864,2.38339252,4195.7,4195.6,0.2173]
[1760518272030,3.45634885,4195.8,4195.3,0.6738]
[1760518272232,1.073,4195.8,4195.4,0.4487]
[1760518272463,2.38345546,4195.6,4195.4,0.4487]
[1760518272653,2.459,4195.5,4195.3,0.2251]
[1760518273163,2.459,4195.5,4195.4,0.4487]
[1760518273363,2.38360859,4195.4,4195.0,0.666]
[1760518273671,2.38356294,4195.4,4195.0,0.2173]
[1760518273871,2.459,4195.5,4195.0,0.2173]
[1760518274033,3.05053391,4195.5,4194.6,0.2251]
[1760518274473,2.38406818,4194.6,4194.4,0.4487]
[1760518274777,2.459,4194.5,4194.4,0.4487]
[1760518275059,4.84309187,4194.5,4194.3,0.2251]
[1760518275427,2.459,4194.5,4194.3,0.6738]
[1760518275628,2.459,4194.5,4194.3,0.2251]
[1760518275985,2.38413707,4194.4,4194.2,1e-08]
[1760518276137,2.459,4194.5,4194.3,0.4487]
[1760518276539,4.84310217,4194.5,4194.3,0.4487]
[1760518276832,2.459,4194.5,4194.3,0.4487]
[1760518277670,2.38418806,4194.3,4194.2,1e-08]
[1760518278648,2.38418806,4194.3,4194.2,0.11920001]
[1760518279584,2.459,4194.5,4194.2,0.11920001]
[1760518279757,2.38418806,4194.3,4194.2,0.11920001]
[1760518280440,2.38416951,4194.4,4194.2,0.11920001]
[1760518280645,2.38418806,4194.3,4194.2,0.11920001]
[1760518282275,2.459,4194.5,4194.2,0.11920001]
[1760518282673,2.3841436,4194.4,4194.2,0.11920001]
[1760518283590,2.38418806,4194.3,4194.2,0.11920001]
[1760518285379,2.38414802,4194.4,4194.2,0.11920001]
[1760518285676,2.38418806,4194.3,4194.2,1e-08]
[1760518286379,2.38608708,4194.2,4194.1,0.002]
[1760518286577,4.84508708,4194.2,4194.1,0.002]
[1760518286879,6.86408708,4194.2,4194.1,0.002]
[1760518287095,6.76508708,4194.2,4194.1,0.002]
[1760518287384,7.76690107,4194.2,4194.1,0.002]
[1760518287553,7.86590107,4194.2,4194.1,0.002]
[1760518288155,7.76690107,4194.2,4194.1,0.002]
[1760518288682,4.38084218,4194.2,4194.1,0.4507]
[1760518288860,2.46084218,4194.2,4194.1,0.6758]
[1760518289481,2.46084218,4194.2,4194.1,0.002]
[1760518289884,4.84508708,4194.2,4194.1,0.002]
[1760518290183,6.99308708,4194.2,4194.1,0.002]
[1760518290388,7.94078296,4194.2,4194.1,0.002]
[1760518290684,5.79278296,4194.2,4194.1,0.002]
[1760518291089,2.46084218,4194.2,4194.1,0.4507]
[1760518291582,2.46084218,4194.2,4194.1,0.6758]
[1760518292698,2.46084218,4194.2,4194.1,3.06010175]
[1760518292699,0.00184218,4194.2,4194.1,3.06010175]
[1760518292898,2.46004218,4194.2,4194.1,3.06010175]
[1760518293193,2.46004218,4194.2,4194.1,0.002]
[1760518293489,2.46004218,4194.2,4194.1,0.4507]
[1760518293690,2.46004218,4194.2,4194.1,0.2271]
[1760518293891,2.46004218,4194.2,4194.1,0.002]
[1760518294260,4.84428708,4194.2,4194.1,0.002]
[1760518295192,2.46004218,4194.2,4194.1,0.002]
[1760518296489,4.84428708,4194.2,4194.1,0.002]
[1760518296794,5.57709994,4194.2,4194.1,0.002]
[1760518299001,7.59679994,4194.2,4194.1,0.002]
[1760518299200,7.49709994,4194.2,4194.1,0.002]
[1760518300093,8.57109994,4194.2,4194.1,0.002]
[1760518300302,9.64509994,4194.2,4194.1,0.002]
[1760518301300,8.57109994,4194.2,4194.1,0.002]
[1760518301607,7.49709994,4194.2,4194.1,0.002]
[1760518301912,5.11285504,4194.2,4194.1,0.002]
[1760518302084,2.45904218,4194.2,4194.1,0.6527]
[1760518302875,0.00104218,4194.2,4194.1,0.002]
[1760518303199,4.84328708,4194.2,4194.1,0.002]
[1760518303377,2.45904218,4194.2,4194.1,0.002]
[1760518303578,2.45904218,4194.2,4194.1,0.6527]
[1760518303779,4.84328708,4194.2,4194.1,0.002]
[1760518304508,6.76328708,4194.2,4194.1,0.002]
[1760518305371,6.86228708,4194.2,4194.1,0.002]
[1760518305572,7.73126115,4194.2,4194.1,0.002]
[1760518305782,4.84328708,4194.2,4194.1,0.002]
[1760518306395,2.45804218,4194.2,4194.1,0.6527]
[1760518306811,2.45804218,4194.2,4194.1,0.002]
[1760518307120,2.45804218,4194.2,4194.1,0.6527]
[1760518307680,2.45804218,4194.2,4194.1,0.002]
[1760518308475,2.45804218,4194.2,4194.1,0.6527]
[1760518309003,2.45804218,4194.2,4194.1,0.002]
[1760518309406,4.84228708,4194.2,4194.1,0.002]
[1760518309912,5.56492965,4194.2,4194.1,0.002]
[1760518310095,6.63892965,4194.2,4194.1,0.002]
[1760518311305,8.55892965,4194.2,4194.1,0.002]
[1760518312081,8.55892965,4194.2,4194.1,0.1212]
[1760518312926,8.55892965,4194.2,4194.1,0.002]
[1760518315044,4.30528708,4194.2,4194.1,0.6762]
[1760518315203,6.76128708,4194.2,4194.1,0.7954]
[1760518315535,4.30528708,4194.2,4194.1,0.3524]
[1760518315700,6.76128708,4194.2,4194.1,0.3524]
[1760518316334,6.76128708,4194.2,4194.1,0.1212]
[1760518316507,7.67502906,4194.2,4194.1,0.002]
[1760518317204,7.77472906,4194.2,4194.1,0.002]
[1760518317525,7.67502906,4194.2,4194.1,0.002]
[1760518319906,32.67736506,4194.2,4194.1,0.002]
[1760518320232,16.60422206,4194.2,4194.1,0.002]
[1760518320436,16.16382206,4194.2,4194.1,0.002]
[1760518320603,16.28302206,4194.2,4194.1,0.002]
[1760518321013,17.03815806,4194.2,4194.1,0.002]
[1760518321222,15.96515806,4194.2,4194.1,0.002]
[1760518322154,24.53738806,4194.2,4194.1,0.002]
[1760518322930,23.26407306,4194.2,4194.1,0.002]
[1760518323110,31.03461759,4194.2,4194.1,0.002]
[1760518323306,2.38447231,4193.8,4193.7,1e-08]
[1760518323518,28.6202376,4193.8,4193.7,1e-08]
[1760518323722,28.7199376,4193.8,4193.7,1e-08]
[1760518324019,32.5652046,4193.8,4193.7,1e-08]
[1760518324218,29.6580156,4193.8,4193.3,0.002]
[1760518324423,38.04772029,4193.4,4193.3,0.002]
[1760518324609,42.87876334,4193.4,4193.3,0.002]
[1760518324808,42.97846334,4193.4,4193.3,0.002]
[1760518325138,12.97846334,4193.4,4193.3,0.002]
[1760518325308,42.97846334,4193.4,4193.3,0.002]
[1760518325510,42.98162684,4193.4,4193.3,0.002]
[1760518325708,22.69873184,4193.4,4193.3,0.002]
[1760518325949,22.28322184,4193.4,4193.3,0.002]
[1760518326242,29.14265784,4193.4,4193.3,0.002]
[1760518327356,26.60694333,4193.4,4193.3,0.002]
[1760518327507,25.17341633,4193.4,4193.3,0.002]
[1760518328039,25.07371633,4193.4,4193.3,0.002]
[1760518328242,31.39303433,4193.4,4193.3,0.002]
[1760518328653,26.84769433,4193.4,4193.3,0.002]
[1760518329318,43.69811133,4193.4,4193.3,0.002]
[1760518329547,35.63976333,4193.4,4193.3,0.002]
[1760518329747,33.33821333,4193.4,4193.3,0.002]
[1760518330249,43.57140833,4193.4,4193.3,0.002]
[1760518330444,42.84994233,4193.4,4193.3,0.002]
[1760518330647,41.77594233,4193.4,4193.3,0.002]
[1760518330848,40.70194233,4193.4,4193.3,0.002]
[1760518331017,40.70194233,4193.4,4191.9,0.4697]
[1760518331018,2.38549618,4192.0,4191.9,0.4697]
[1760518331220,4.84049618,4192.0,4191.9,0.4697]
[1760518333549,2.0392,4192.5,4191.9,0.4697]
[1760518333759,2.38542114,4192.2,4191.9,0.4697]
[1760518333954,0.1192,4192.7,4191.9,0.4697]
[1760518333955,2.38549618,4192.0,4191.9,0.4697]
[1760518334160,4.84049618,4192.0,4191.9,0.4697]
[1760518334464,4.84049618,4192.0,4191.9,0.5889]
[1760518334638,6.76049618,4192.0,4191.9,0.5889]
[1760518335167,4.375,4192.0,4191.9,0.5889]
[1760518336638,1.92,4192.0,4191.9,0.5889]
[1760518336849,4.13647717,4193.9,4191.9,2.97445309]
[1760518337039,4.13647717,4193.9,4192.0,3.15263954]
[1760518337040,2.455,4193.6,4192.0,3.15263954]
[1760518337234,2.85532,4193.5,4192.1,0.6959]
[1760518337562,5.490554,4193.4,4192.2,0.4697]
[1760518337732,6.04806858,4193.5,4192.2,0.4697]
[1760518337733,4.8396234,4193.6,4193.3,0.2262]
[1760518337934,2.0934,4193.4,4192.1,0.2262]
[1760518338166,1.92,4193.5,4193.3,0.2262]
[1760518338360,2.455,4193.6,4193.3,0.2262]
[1760518338556,2.455,4193.5,4193.3,0.2262]
[1760518338762,0.00124218,4194.2,4193.3,0.2262]
[1760518338965,4.375,4194.1,4193.4,2.38467767]
[1760518339144,2.455,4194.1,4193.4,2.38467767]
[1760518339338,4.83930714,4194.1,4193.3,0.2262]
[1760518339565,2.455,4194.1,4193.3,0.72578942]
[1760518339874,2.38351331,4194.1,4193.4,2.38465563]
[1760518340033,2.38351331,4194.1,4193.5,0.4697]
[1760518340237,0.001,4193.6,4193.5,0.4697]
[1760518340752,0.001,4193.6,4193.5,2.85434289]
[1760518341134,2.455,4193.6,4193.5,2.85434289]
[1760518341331,2.455,4193.6,4193.5,0.4697]
[1760518341680,2.455,4193.6,4193.5,2.85434289]
[1760518342783,2.455,4193.6,4193.5,0.4697]
[1760518344658,2.455,4193.6,4193.3,0.2262]
[1760518345080,3.528,4193.5,4193.4,0.7697]
[1760518345279,3.528,4193.5,4193.4,3.26124789]
[1760518345787,3.528,4193.5,4193.4,1.34624813]
[1760518346066,3.528,4193.5,4193.4,0.7697]
[1760518346584,3.528,4193.5,4193.4,3.15439976]
[1760518346763,3.528,4193.5,4193.4,0.7697]
[1760518347145,3.528,4193.5,4193.4,0.8889]
[1760518347354,3.528,4193.5,4193.4,3.27359976]
[1760518347644,3.528,4193.5,4193.4,0.8889]
[1760518348070,3.528,4193.5,4193.4,3.27359976]